bitfinex/quotes_BTCUSD_20250212
["timestamp","ask_amount","ask_price","bid_price","bid_amount"]
[1739391517484,6.333e-05,97589.0,97588.0,0.303707]
[1739391517688,6.333e-05,97589.0,97588.0,0.48861065]
[1739391517908,6.333e-05,97589.0,97588.0,0.49861065]
[1739391518497,6.333e-05,97589.0,97588.0,0.50561065]
[1739391519738,6.333e-05,97589.0,97588.0,0.51838466]
[1739391520348,6.333e-05,97589.0,97588.0,0.51138466]
[1739391520754,6.333e-05,97589.0,97588.0,0.56808466]
[1739391522503,6.333e-05,97589.0,97588.0,0.43598466]
[1739391522826,6.333e-05,97589.0,97588.0,0.42898466]
[1739391523157,6.333e-05,97589.0,97588.0,0.43598466]
[1739391523369,6.333e-05,97589.0,97588.0,0.42898466]
[1739391523778,6.333e-05,97589.0,97588.0,0.43498466]
[1739391524027,6.333e-05,97589.0,97588.0,0.42898466]
[1739391524215,6.333e-05,97589.0,97588.0,0.43598466]
[1739391524577,6.333e-05,97589.0,97588.0,0.42898466]
[1739391525336,6.333e-05,97589.0,97588.0,0.43598466]
[1739391526601,6.333e-05,97589.0,97588.0,0.42898466]
[1739391527015,6.333e-05,97589.0,97588.0,0.43598466]
[1739391527999,0.00016983,97589.0,97588.0,0.43598466]
[1739391529918,0.00016983,97589.0,97588.0,0.42598466]
[1739391530395,0.00016983,97589.0,97588.0,0.43598466]
[1739391530592,0.00016983,97589.0,97588.0,0.42898466]
[1739391531056,0.00016983,97589.0,97588.0,0.43598466]
[1739391533809,0.00016983,97589.0,97588.0,0.42898466]
[1739391534201,0.00016983,97589.0,97588.0,0.43598466]
[1739391534370,0.00016983,97589.0,97588.0,0.42898466]
[1739391534586,0.00016983,97589.0,97588.0,0.50768466]
[1739391534760,0.00016983,97589.0,97588.0,0.51468466]
[1739391534968,0.00016983,97589.0,97588.0,0.50768466]
[1739391535149,0.00016983,97589.0,97588.0,2.00768466]
[1739391535344,0.00016983,97589.0,97588.0,2.01468466]
[1739391536848,0.00016983,97589.0,97588.0,2.02168466]
[1739391537259,0.00016983,97589.0,97588.0,2.00768466]
[1739391537411,0.00016983,97589.0,97588.0,2.01468466]
[1739391538024,0.00016983,97589.0,97588.0,2.02168466]
[1739391538288,0.00016983,97589.0,97588.0,2.00768466]
[1739391538697,0.00016983,97589.0,97588.0,2.01468466]
[1739391538966,0.00016983,97589.0,97588.0,2.00768466]
[1739391540279,0.00016983,97589.0,97588.0,2.01468466]
[1739391540693,0.00016983,97589.0,97588.0,0.42898466]
[1739391540992,0.00016983,97589.0,97588.0,0.43598466]
[1739391541736,0.00016983,97589.0,97588.0,0.42898466]
[1739391542438,0.00016983,97589.0,97588.0,0.153707]
[1739391542637,0.00016983,97589.0,97587.0,0.153708]
[1739391543628,0.00016983,97589.0,97588.0,0.153707]
[1739391543988,0.00016983,97589.0,97583.0,0.204951]
[1739391543989,0.0801,97588.0,97583.0,0.204951]
[1739391544234,0.0801,97588.0,97586.0,0.15371]
[1739391544559,0.0801,97588.0,97587.0,0.153708]
[1739391545904,0.0801,97588.0,97587.0,0.160708]
[1739391546357,0.00016983,97589.0,97587.0,0.007]
[1739391546553,0.00016983,97589.0,97588.0,0.153707]
[1739391547314,0.00016983,97589.0,97587.0,0.007]
[1739391547518,0.00016983,97589.0,97588.0,0.153707]
[1739391547878,0.204892,97613.0,97584.0,0.214949]
[1739391548015,0.25628115,97611.0,97597.0,0.153693]
[1739391548453,0.0001065,97611.0,97584.0,0.11250365]
[1739391548669,0.0001065,97611.0,97600.0,0.153687]
[1739391548862,0.02079608,97607.0,97600.0,0.153687]
[1739391549228,0.0001065,97611.0,97601.0,0.153686]
[1739391549426,0.013,97611.0,97590.0,0.14248028]
[1739391549638,0.153675,97609.0,97595.0,0.153695]
[1739391549823,0.153676,97608.0,97595.0,0.153695]
[1739391550025,0.17420598,97608.0,97595.0,0.153695]
[1739391550231,0.02052998,97608.0,97595.0,0.153695]
[1739391550641,0.02052998,97608.0,97590.0,0.14248028]
[1739391550877,0.076,97607.0,97596.0,0.153693]
[1739391551443,0.076,97607.0,97590.0,0.14248028]
[1739391551844,0.076,97607.0,97599.0,0.15369]
[1739391552292,0.076,97607.0,97590.0,0.14348028]
[1739391552498,0.076,97607.0,97592.0,0.153699]
[1739391552694,0.076,97607.0,97582.0,0.204954]
[1739391552877,0.076,97607.0,97596.0,0.153694]
[1739391553081,0.076,97607.0,97580.0,0.14248028]
[1739391553773,0.076,97607.0,97595.0,0.153695]
[1739391553978,0.076,97607.0,97586.0,0.204947]
[1739391554186,0.076,97607.0,97594.0,0.153696]
[1739391554361,0.076,97607.0,97589.0,0.204939]
[1739391554801,0.153685,97602.0,97589.0,0.204939]
[1739391555048,0.076,97607.0,97585.0,0.01]
[1739391555203,0.076,97607.0,97593.0,0.153699]
[1739391555583,0.076,97607.0,97590.0,0.204937]
[1739391555802,0.280904,97607.0,97590.0,0.204937]
[1739391556017,0.153681,97605.0,97590.0,0.153704]
[1739391556227,0.153679,97606.0,97591.0,0.153701]
[1739391556445,0.153679,97606.0,97592.0,0.1537]
[1739391556609,0.153679,97606.0,97589.0,0.001]
[1739391556610,0.204905,97606.0,97589.0,0.001]
[1739391556830,0.153689,97600.0,97589.0,0.001]
[1739391557032,0.076,97607.0,97590.0,0.14248028]
[1739391557234,0.0001065,97611.0,97590.0,0.14248028]
[1739391557432,0.0001065,97611.0,97604.0,0.153681]
[1739391557864,0.0001065,97611.0,97602.0,0.204913]
[1739391558063,0.0001065,97611.0,97605.0,0.15368]
[1739391558626,0.02051395,97610.0,97606.0,0.153678]
[1739391558977,0.02051395,97610.0,97605.0,0.15368]
[1739391559160,0.02051395,97610.0,97604.0,0.204908]
[1739391559352,0.02051395,97610.0,97599.0,0.204918]
[1739391559730,0.02051395,97610.0,97592.0,0.01]
[1739391560490,0.02051395,97610.0,97604.0,0.153681]
[1739391560631,0.02051395,97610.0,97606.0,0.153677]
[1739391560979,0.02051395,97610.0,97607.0,0.153677]
[1739391561382,0.02051395,97610.0,97595.0,0.204928]
[1739391561920,0.02051395,97610.0,97606.0,0.153678]
[1739391562419,0.02051395,97610.0,97595.0,0.204928]
[1739391562543,0.02051395,97610.0,97606.0,0.153678]
[1739391562994,0.02051395,97610.0,97607.0,0.153677]
[1739391563183,0.02051395,97610.0,97595.0,0.204928]
[1739391563359,0.02051395,97610.0,97605.0,0.153679]
[1739391563589,0.02051395,97610.0,97603.0,0.153682]
[1739391563789,0.02051395,97610.0,97593.0,0.01]
[1739391563994,0.02051395,97610.0,97602.0,0.153684]
[1739391564210,0.02051395,97610.0,97603.0,0.153683]
[1739391564413,0.02062045,97610.0,97600.0,0.204917]
[1739391564614,0.02062045,97610.0,97602.0,0.153685]
[1739391565178,0.02062045,97610.0,97594.0,0.20493]
[1739391565463,0.0001065,97610.0,97593.0,0.01022365]
[1739391565598,0.0001065,97610.0,97607.0,0.153676]
[1739391566606,0.0001065,97610.0,97605.0,0.153679]
[1739391566815,0.0001065,97610.0,97594.0,0.20493]
[1739391567262,0.0001065,97610.0,97593.0,0.01022365]
[1739391567476,0.0001065,97610.0,97598.0,0.204922]
[1739391567689,0.0001065,97610.0,97602.0,0.153684]
[1739391568493,0.0001065,97610.0,97596.0,0.204925]
[1739391568693,0.0001065,97610.0,97599.0,0.153688]
[1739391568900,0.0001065,97610.0,97600.0,0.153688]
[1739391569078,0.0001065,97610.0,97593.0,0.01022365]
[1739391569421,0.0001065,97610.0,97595.0,0.204926]
[1739391569622,0.0001065,97610.0,97593.0,0.01022365]
[1739391569779,0.0001065,97610.0,97593.0,0.16392265]
[1739391569977,0.0001065,97610.0,97594.0,0.01]
[1739391570415,0.0001065,97610.0,97594.0,0.163697]
[1739391570729,0.0001065,97610.0,97594.0,0.01]
[1739391570906,0.0001065,97610.0,97599.0,0.153688]
[1739391571273,0.0001065,97610.0,97600.0,0.153688]
[1739391571474,0.0001065,97610.0,97601.0,0.153686]
[1739391571729,0.0001065,97610.0,97595.0,0.204928]
[1739391571932,0.0001065,97610.0,97596.0,0.204926]
[1739391572069,0.0001065,97610.0,97599.0,0.204918]
[1739391572500,0.0001065,97610.0,97599.0,0.153688]
[1739391572898,0.0001065,97610.0,97594.0,0.01]
[1739391573095,0.0001065,97610.0,97600.0,0.153687]
[1739391573282,0.0001065,97610.0,97607.0,0.00152]
[1739391579148,0.204858,97629.0,97607.0,0.00152]
[1739391579487,0.0001321,97620.0,97614.0,0.0815]
[1739391579693,0.0001321,97620.0,97607.0,0.00152]
[1739391580837,0.0001321,97620.0,97608.0,0.153674]
[1739391581715,0.0001321,97620.0,97610.0,0.153672]
[1739391582127,0.0001321,97620.0,97613.0,0.153667]
[1739391582328,0.0001321,97620.0,97619.0,0.153658]
[1739391582531,0.0001321,97620.0,97608.0,0.204901]
[1739391582720,0.0001321,97620.0,97607.0,0.00152]
[1739391582721,0.0001321,97620.0,97614.0,0.153665]
[1739391582879,0.0001321,97620.0,97614.0,0.153666]
[1739391583217,0.0001321,97620.0,97607.0,0.00252]
[1739391583218,0.0001321,97620.0,97619.0,0.153658]
[1739391587466,0.0002386,97620.0,97619.0,0.153658]
[1739391589025,0.0002386,97620.0,97619.0,0.155658]
[1739391589941,0.0002386,97620.0,97619.0,0.153658]
[1739391590252,0.0002386,97620.0,97619.0,0.155658]
[1739391591207,0.02290527,97623.0,97622.0,0.153653]
[1739391592745,0.02290527,97623.0,97622.0,0.155653]
[1739391593200,0.02290527,97623.0,97622.0,0.247553]
[1739391593831,0.02290527,97623.0,97622.0,0.35005665]
[1739391594017,0.02290527,97623.0,97622.0,0.34805665]
[1739391595997,0.02290527,97623.0,97622.0,0.35405665]
[1739391596115,0.02290527,97623.0,97622.0,0.34805665]
[1739391596319,0.02290527,97623.0,97622.0,0.35405665]
[1739391596771,0.02290527,97623.0,97622.0,0.36650932]
[1739391597235,0.02290527,97623.0,97622.0,0.36050932]
[1739391597437,0.02290527,97623.0,97622.0,0.35650932]
[1739391597639,0.02290527,97623.0,97622.0,0.36650932]
[1739391598246,0.02290527,97623.0,97622.0,0.35977589]
[1739391599088,0.02290527,97623.0,97622.0,0.36577589]
[1739391599327,0.02290527,97623.0,97622.0,0.35377589]
[1739391599711,0.02290527,97623.0,97622.0,0.35977589]
[1739391603880,0.02290527,97623.0,97622.0,0.25727224]
[1739391604090,0.02290527,97623.0,97622.0,0.15291957]
[1739391604295,0.02290527,97623.0,97622.0,0.16291957]
[1739391605455,0.02290527,97623.0,97622.0,0.15691957]
[1739391605656,0.02290527,97623.0,97622.0,0.15891957]
[1739391606002,0.02290527,97623.0,97622.0,0.15691957]
[1739391606208,0.02290527,97623.0,97622.0,0.15891957]
[1739391606409,0.02290527,97623.0,97622.0,0.15691957]
[1739391606821,0.02290527,97623.0,97622.0,0.15891957]
[1739391607058,0.02290527,97623.0,97622.0,0.24161957]
[1739391608323,0.02290527,97623.0,97622.0,0.23961957]
[1739391608738,0.02290527,97623.0,97622.0,0.24361957]
[1739391611765,0.02290527,97623.0,97622.0,0.22961957]
[1739391611916,0.02290527,97623.0,97622.0,0.24361957]
[1739391612473,0.02290527,97623.0,97622.0,0.24384322]
[1739391612684,0.02301177,97623.0,97622.0,0.23984322]
[1739391613035,0.02301177,97623.0,97622.0,0.23384322]
[1739391613247,0.02301177,97623.0,97622.0,0.24384322]
[1739391614472,0.02301177,97623.0,97622.0,0.23984322]
[1739391614854,0.02301177,97623.0,97622.0,0.24384322]
[1739391618101,0.02301177,97623.0,97622.0,0.23984322]
[1739391618307,0.02301177,97623.0,97622.0,0.24384322]
[1739391618529,0.02301177,97623.0,97622.0,0.23984322]
[1739391618988,0.02301177,97623.0,97622.0,0.24384322]
[1739391619121,0.02301177,97623.0,97622.0,0.23984322]
[1739391619514,0.02301177,97623.0,97622.0,0.24384322]
[1739391620311,0.02401177,97623.0,97622.0,0.24484322]
[1739391620520,0.02401177,97623.0,97622.0,0.25484322]
[1739391620782,0.02401177,97623.0,97622.0,0.24384322]
[1739391621078,0.02301177,97623.0,97622.0,0.24384322]
[1739391621311,0.02401177,97623.0,97622.0,0.25084322]
[1739391621517,0.02401177,97623.0,97622.0,0.25484322]
[1739391621724,0.02401177,97623.0,97622.0,0.25084322]
[1739391622101,0.02401177,97623.0,97622.0,0.25484322]
[1739391622863,0.02401177,97623.0,97622.0,0.25084322]
[1739391623063,0.02401177,97623.0,97622.0,0.25484322]
[1739391623268,0.02301177,97623.0,97622.0,0.24384322]
[1739391623472,0.02401177,97623.0,97622.0,0.25384322]
[1739391623670,0.02401177,97623.0,97622.0,0.24384322]
[1739391623878,0.02401177,97623.0,97622.0,0.25384322]
[1739391624236,0.02301177,97623.0,97622.0,0.16114322]
[1739391624440,0.02401177,97623.0,97622.0,0.17614322]
[1739391625001,0.02401177,97623.0,97622.0,0.17214322]
[1739391625814,0.02401177,97623.0,97622.0,0.17814322]
[1739391626628,0.02301177,97623.0,97622.0,0.15714322]
[1739391626835,0.02401177,97623.0,97622.0,0.17114322]
[1739391627255,0.02301177,97623.0,97622.0,0.16114322]
[1739391627663,0.02401177,97623.0,97622.0,0.17014322]
[1739391628074,0.02401177,97623.0,97622.0,0.16614322]
[1739391628471,0.02401177,97623.0,97622.0,0.17014322]
[1739391628773,0.02401177,97623.0,97622.0,0.01922365]
[1739391629283,0.02401177,97623.0,97622.0,0.02322365]
[1739391629528,0.28016742,97623.0,97622.0,0.01322365]
[1739391629707,0.3646327,97623.0,97622.0,0.01322365]
[1739391630063,0.3636327,97623.0,97622.0,0.00422365]
[1739391630265,0.3646327,97623.0,97622.0,0.01122365]
[1739391630641,0.3948327,97623.0,97622.0,0.00422365]
[1739391631048,0.4018327,97623.0,97622.0,0.00122365]
[1739391632381,0.35019901,97623.0,97622.0,0.00122365]
[1739391634552,0.15695093,97623.0,97622.0,0.00122365]
[1739391634924,0.31060293,97623.0,97622.0,0.00122365]
[1739391635126,0.01712151,97623.0,97622.0,0.00122365]
[1739391635958,0.01712151,97623.0,97622.0,0.00022365]
[1739391636218,0.01012151,97623.0,97622.0,0.00022365]
[1739391636430,0.01712151,97623.0,97622.0,0.00022365]
[1739391636584,0.0071065,97623.0,97622.0,0.00022365]
[1739391637411,0.0001065,97623.0,97622.0,0.00022365]
[1739391637755,0.0071065,97623.0,97622.0,0.00022365]
[1739391638110,0.0071065,97623.0,97622.0,0.15387665]
[1739391638635,0.0071065,97623.0,97622.0,0.00022365]
[1739391638966,0.0001065,97623.0,97622.0,0.15387665]
[1739391639372,0.0061065,97623.0,97622.0,0.00022365]
[1739391639967,0.0061065,97623.0,97622.0,0.15387665]
[1739391640172,0.0001065,97623.0,97622.0,0.27927665]
[1739391640375,0.0051065,97623.0,97622.0,0.27927665]
[1739391640528,0.0051065,97623.0,97622.0,0.28927665]
[1739391640730,0.0001065,97623.0,97622.0,0.28927665]
[1739391645764,0.0001065,97623.0,97622.0,0.28477665]
[1739391648585,0.0001065,97623.0,97622.0,0.2850003]
[1739391655036,0.0001065,97623.0,97622.0,0.38750395]
[1739391656980,0.0011065,97623.0,97622.0,0.39750395]
[1739391657196,0.0011065,97623.0,97622.0,0.40150395]
[1739391657327,0.0011065,97623.0,97622.0,0.39750395]
[1739391657952,0.0011065,97623.0,97622.0,0.40250395]
[1739391658154,0.0001065,97623.0,97622.0,0.38750395]
[1739391658399,0.0001065,97623.0,97622.0,0.39250395]
[1739391658573,0.0011065,97623.0,97622.0,0.40550395]
[1739391658994,0.0001065,97623.0,97622.0,0.39250395]
[1739391659190,0.0001065,97623.0,97622.0,0.40550395]
[1739391659524,0.0011065,97623.0,97622.0,0.40550395]
[1739391659728,0.0001065,97623.0,97622.0,0.39250395]
[1739391659881,0.0001065,97623.0,97622.0,0.38750395]
[1739391660083,0.0011065,97623.0,97622.0,0.40550395]
[1739391665720,0.0011065,97623.0,97622.0,0.39550395]
[1739391665948,0.0011065,97623.0,97622.0,0.40550395]
[1739391666519,0.0011065,97623.0,97622.0,0.01822365]
[1739391667366,0.0001065,97623.0,97622.0,0.00022365]
[1739391667516,0.25626215,97623.0,97622.0,0.01022365]
[1739391667715,0.28026215,97623.0,97622.0,0.01422365]
[1739391667943,0.28026215,97623.0,97622.0,0.01022365]
[1739391668204,0.27926215,97623.0,97622.0,0.00022365]
[1739391668560,0.28126215,97623.0,97622.0,0.00022365]
[1739391668990,0.27926215,97623.0,97622.0,0.00022365]
[1739391669225,0.28126215,97623.0,97622.0,0.00022365]
[1739391670097,0.0021065,97623.0,97622.0,0.00022365]
[1739391671147,0.1557585,97623.0,97622.0,0.00022365]
[1739391671872,0.0021065,97623.0,97622.0,0.00022365]
[1739391672267,0.0021065,97623.0,97622.0,0.15387665]
[1739391673255,0.0021065,97623.0,97622.0,0.16387665]
[1739391673712,0.0021065,97623.0,97622.0,0.15387665]
[1739391673892,0.0021065,97623.0,97622.0,0.16387665]
[1739391674095,0.0001065,97623.0,97622.0,0.16387665]
[1739391674441,0.0001065,97623.0,97622.0,0.16487665]
[1739391674768,0.0021065,97623.0,97622.0,0.16487665]
[1739391675966,0.0001065,97623.0,97622.0,0.24207665]
[1739391676588,0.0001065,97623.0,97622.0,0.24107665]
[1739391677006,0.0001065,97623.0,97622.0,0.01122365]
[1739391677207,0.0001065,97623.0,97622.0,0.01222365]
[1739391677382,0.0001065,97623.0,97622.0,0.00222365]
[1739391677590,0.0001065,97623.0,97622.0,0.00322365]
[1739391677789,0.0001065,97623.0,97622.0,0.00122365]
[1739391678096,0.0001065,97623.0,97622.0,0.15887665]
[1739391678300,0.0001065,97623.0,97622.0,0.15787665]
[1739391678457,0.0001065,97623.0,97622.0,0.15387665]
[1739391678818,0.0031065,97623.0,97622.0,0.15387665]
[1739391680312,0.0001065,97623.0,97622.0,0.15387665]
[1739391680522,0.0001065,97623.0,97622.0,0.15587665]
[1739391680900,0.0001065,97623.0,97622.0,0.15687665]
[1739391681706,0.0001065,97623.0,97622.0,0.00322365]
[1739391681884,0.0001065,97623.0,97622.0,0.00222365]
[1739391682071,0.0001065,97623.0,97622.0,0.15587665]
[1739391682632,0.0001065,97623.0,97622.0,0.00222365]
[1739391683170,0.0001065,97623.0,97622.0,0.00322365]
[1739391683372,0.0001065,97623.0,97622.0,0.00022365]
[1739391683567,0.0001065,97623.0,97622.0,0.00122365]
[1739391683777,0.0001065,97623.0,97622.0,0.15787665]
[1739391684242,0.0001065,97623.0,97622.0,0.15487665]
[1739391684397,0.0001065,97623.0,97622.0,0.16587665]
[1739391684795,0.0001065,97623.0,97622.0,0.16687665]
[1739391685044,0.0001065,97623.0,97622.0,0.16587665]
[1739391685249,0.0001065,97623.0,97622.0,0.16387665]
[1739391685615,0.0001065,97623.0,97622.0,0.24407665]
[1739391686403,0.0001065,97623.0,97622.0,0.24807665]
[1739391686612,0.0001065,97623.0,97622.0,0.24707665]
[1739391687035,0.0001065,97623.0,97622.0,0.24507665]
[1739391687256,0.0001065,97623.0,97622.0,0.24907665]
[1739391692761,0.0001065,97623.0,97622.0,0.29537665]
[1739391699625,0.0004065,97623.0,97622.0,0.29537665]
[1739391700998,0.0004065,97623.0,97622.0,0.30483414]
[1739391703366,0.0004065,97623.0,97622.0,0.29483414]
[1739391703523,0.0004065,97623.0,97622.0,0.30483414]
[1739391703960,0.0004065,97623.0,97622.0,0.29537665]
[1739391705638,0.0004065,97623.0,97622.0,0.28537665]
[1739391705845,0.0004065,97623.0,97622.0,0.29537665]
[1739391706227,0.0004065,97623.0,97622.0,0.28537665]
[1739391706644,0.0004065,97623.0,97622.0,0.29537665]
[1739391710091,0.0004065,97623.0,97622.0,0.30484044]
[1739391714781,0.0004065,97623.0,97622.0,0.29984044]
[1739391715026,0.0004065,97623.0,97622.0,0.29037665]
[1739391715234,0.0004065,97623.0,97622.0,0.21017665]
[1739391717226,0.0004065,97623.0,97622.0,0.16387665]
[1739391718001,0.0004065,97623.0,97622.0,0.015]
[1739391718401,0.0004065,97623.0,97622.0,0.16887665]
[1739391721864,0.0004065,97623.0,97622.0,0.00522365]
[1739391722453,0.0004065,97623.0,97622.0,0.00122365]
[1739391722781,0.0004065,97623.0,97622.0,0.00022365]
[1739391723997,0.0004065,97623.0,97622.0,0.00322365]
[1739391724369,0.0004065,97623.0,97622.0,0.00022365]
[1739391725027,0.12591015,97623.0,97622.0,0.00022365]
[1739391725220,0.17436312,97623.0,97622.0,0.00022365]
[1739391725628,0.27956215,97623.0,97622.0,0.00022365]
[1739391726997,0.13291015,97623.0,97622.0,0.00022365]
[1739391727640,0.27956215,97623.0,97622.0,0.00022365]
[1739391728258,0.12591015,97623.0,97622.0,0.00022365]
[1739391728415,0.13291015,97623.0,97622.0,0.00022365]
[1739391730562,0.12591015,97623.0,97622.0,0.00022365]
[1739391730783,0.13291015,97623.0,97622.0,0.00022365]
[1739391731374,0.12591015,97623.0,97622.0,0.00022365]
[1739391731570,0.13291015,97623.0,97622.0,0.00022365]
[1739391733590,0.0004065,97623.0,97622.0,0.00022365]
[1739391733798,0.0074065,97623.0,97622.0,0.19917665]
[1739391734675,0.0004065,97623.0,97622.0,0.19917665]
[1739391735506,0.0004065,97623.0,97622.0,0.20017665]
[1739391736583,0.0004065,97623.0,97622.0,0.29437665]
[1739391742943,0.023,97649.0,97638.0,0.153627]
[1739391743151,0.023,97647.0,97638.0,0.153627]
[1739391743343,0.10250365,97646.0,97638.0,0.153627]
[1739391743573,0.10250365,97646.0,97633.0,0.01]
[1739391743772,0.10250365,97646.0,97635.0,0.153631]
[1739391743995,0.10250365,97646.0,97633.0,0.214847]
[1739391744198,0.10250365,97646.0,97639.0,0.153627]
[1739391744533,0.10250365,97646.0,97638.0,0.001]
[1739391744715,0.10250365,97646.0,97640.0,0.153625]
[1739391744977,0.10250365,97646.0,97638.0,0.001]
[1739391745181,0.10250365,97646.0,97642.0,0.153621]
[1739391745708,0.10250365,97646.0,97636.0,0.159841]
[1739391745963,0.10250365,97646.0,97640.0,0.153624]
[1739391746204,0.11250365,97646.0,97641.0,0.153623]
[1739391746432,0.11250365,97646.0,97641.0,0.153622]
[1739391746696,0.10250365,97646.0,97639.0,0.153625]
[1739391746927,0.10850365,97646.0,97639.0,0.153625]
[1739391747171,0.10850365,97646.0,97590.0,0.14125492]
[1739391747414,0.10250365,97646.0,97633.0,0.214847]
[1739391747649,0.10250365,97646.0,97635.0,0.153633]
[1739391747891,0.10750365,97646.0,97639.0,0.153626]
[1739391748093,0.10750365,97646.0,97641.0,0.153623]
[1739391748313,0.10750365,97646.0,97640.0,0.153624]
[1739391748548,0.10750365,97646.0,97638.0,0.153627]
[1739391748886,0.10750365,97646.0,97634.0,0.153634]
[1739391749029,0.10750365,97646.0,97634.0,0.153633]
[1739391749229,0.10750365,97646.0,97633.0,0.01]
[1739391749450,0.10750365,97646.0,97637.0,0.15363]
[1739391749720,0.10750365,97646.0,97633.0,0.01]
[1739391750151,0.10750365,97646.0,97634.0,0.204846]
[1739391750345,0.10750365,97646.0,97633.0,0.01]
[1739391750554,0.10750365,97646.0,97628.0,0.0792]
[1739391750791,0.10250365,97646.0,97633.0,0.01]
[1739391751060,0.10850365,97646.0,97633.0,0.01]
[1739391751284,0.10850365,97646.0,97643.0,0.15362]
[1739391751520,0.10250365,97646.0,97643.0,0.15362]
[1739391751747,0.10250365,97646.0,97642.0,0.153621]
[1739391752476,0.10250365,97646.0,97635.0,0.204843]
[1739391752696,0.10261015,97646.0,97641.0,0.153623]
[1739391752907,0.10761015,97646.0,97642.0,0.153621]
[1739391753233,0.10261015,97646.0,97642.0,0.153621]
[1739391753650,0.0031065,97646.0,97643.0,0.153619]
[1739391753824,0.0031065,97646.0,97638.0,0.049]
[1739391753825,0.0031065,97646.0,97645.0,0.153617]
[1739391754032,0.0031065,97646.0,97638.0,0.049]
[1739391754033,0.0031065,97646.0,97639.0,0.204836]
[1739391754387,0.0031065,97646.0,97638.0,0.049]
[1739391754593,0.0001065,97646.0,97638.0,0.253837]
[1739391754772,0.0001065,97646.0,97638.0,0.202627]
[1739391754970,0.0001065,97646.0,97638.0,0.049]
[1739391755397,0.0001065,97646.0,97641.0,0.153623]
[1739391755628,0.0001065,97646.0,97643.0,0.153619]
[1739391755799,0.0001065,97646.0,97638.0,0.049]
[1739391755999,0.0031065,97646.0,97641.0,0.204831]
[1739391756202,0.0031065,97646.0,97641.0,0.153623]
[1739391756400,0.0001065,97646.0,97641.0,0.153622]
[1739391756874,0.0021065,97646.0,97639.0,0.204836]
[1739391757279,0.0001065,97646.0,97638.0,0.049]
[1739391757481,0.0021065,97646.0,97639.0,0.153627]
[1739391757691,0.0021065,97646.0,97638.0,0.049]
[1739391758335,0.0021065,97646.0,97641.0,0.153623]
[1739391758539,0.0021065,97646.0,97645.0,0.153617]
[1739391758963,0.0001065,97646.0,97642.0,0.15362]
[1739391759291,0.0021065,97646.0,97638.0,0.049]
[1739391759930,0.10261015,97646.0,97638.0,0.049]
[1739391760128,0.10261015,97646.0,97638.0,0.202628]
[1739391760474,0.10261015,97646.0,97639.0,0.204836]
[1739391760697,0.10261015,97646.0,97642.0,0.153622]
[1739391761066,0.10261015,97646.0,97641.0,0.204831]
[1739391761197,0.10261015,97646.0,97644.0,0.153619]
[1739391761623,0.10261015,97646.0,97642.0,0.153622]
[1739391763328,0.10661015,97646.0,97642.0,0.153622]
[1739391763524,0.10661015,97646.0,97644.0,0.153619]
[1739391764310,0.0041065,97646.0,97645.0,0.153617]
[1739391764517,0.0001065,97646.0,97645.0,0.153617]
[1739391764648,1.53e-05,97646.0,97645.0,0.153617]
[1739391766090,1.53e-05,97646.0,97641.0,0.20483]
[1739391766091,1.53e-05,97646.0,97641.0,0.153623]
[1739391766334,1.53e-05,97646.0,97638.0,0.049]
[1739391766534,1.53e-05,97646.0,97645.0,0.001]
[1739391766913,1.53e-05,97646.0,97640.0,0.153625]
[1739391768078,1.53e-05,97646.0,97639.0,0.153627]
[1739391768540,1.53e-05,97646.0,97638.0,0.049]
[1739391768971,1.53e-05,97646.0,97640.0,0.153625]
[1739391769171,1.53e-05,97646.0,97638.0,0.049]
[1739391769500,1.53e-05,97646.0,97643.0,0.15362]
[1739391769897,0.0020153,97646.0,97643.0,0.15362]
[1739391770130,0.0020153,97646.0,97642.0,0.153622]
[1739391770311,1.53e-05,97646.0,97642.0,0.153622]
[1739391770468,0.0020153,97646.0,97642.0,0.153622]
[1739391771141,0.0020153,97646.0,97640.0,0.153624]
[1739391771271,0.0020153,97646.0,97641.0,0.153623]
[1739391771483,0.0020153,97646.0,97642.0,0.153621]
[1739391772423,1.53e-05,97646.0,97638.0,0.253836]
[1739391772721,0.0020153,97646.0,97644.0,0.153618]
[1739391772921,0.0020153,97646.0,97643.0,0.15362]
[1739391773119,0.0020153,97646.0,97645.0,0.153617]
[1739391773326,1.53e-05,97646.0,97645.0,0.153617]
[1739391773503,0.0020153,97646.0,97645.0,0.153617]
[1739391774110,0.0020153,97646.0,97644.0,0.153618]
[1739391774411,0.0020153,97646.0,97643.0,0.15362]
[1739391774585,0.0020153,97646.0,97645.0,0.153617]
[1739391774771,1.53e-05,97646.0,97645.0,0.153617]
[1739391775185,0.0020153,97646.0,97645.0,0.153517]
[1739391775697,1.53e-05,97646.0,97645.0,0.153517]
[1739391776147,0.0020153,97646.0,97645.0,0.153517]
[1739391776639,0.0020153,97646.0,97640.0,0.00022365]
[1739391777047,0.0020153,97646.0,97641.0,0.153623]
[1739391777246,0.0020153,97646.0,97645.0,0.003]
[1739391777390,0.0020153,97646.0,97643.0,0.15362]
[1739391777591,0.0020153,97646.0,97640.0,0.00022365]
[1739391777974,0.0020153,97646.0,97640.0,0.00322365]
[1739391778545,1.53e-05,97646.0,97640.0,0.00322365]
[1739391778772,0.0010153,97646.0,97645.0,0.008]
[1739391779318,1.53e-05,97646.0,97642.0,0.153622]
[1739391779555,0.0010153,97646.0,97641.0,0.153623]
[1739391779763,0.0010153,97646.0,97640.0,0.00022365]
[1739391779764,0.0010153,97646.0,97640.0,0.15384865]
[1739391779937,1.53e-05,97646.0,97640.0,0.15384865]
[1739391780131,1.53e-05,97646.0,97640.0,0.00022365]
[1739391780481,0.0010153,97646.0,97640.0,0.15384765]
[1739391780720,0.0010153,97646.0,97640.0,0.00022365]
[1739391781087,0.023,97644.0,97640.0,0.00022365]
[1739391781253,0.153623,97641.0,97640.0,0.00022365]
[1739391781449,0.35832665,97641.0,97640.0,0.00022365]
[1739391781655,0.37918916,97641.0,97640.0,0.00022365]
[1739391781864,0.70718916,97641.0,97640.0,0.00022365]
[1739391782059,0.80969281,97641.0,97640.0,0.00022365]
[1739391782262,0.95969281,97641.0,97640.0,0.00022365]
[1739391782665,0.96569281,97641.0,97640.0,0.00022365]
[1739391782871,0.87539624,97641.0,97640.0,0.00022365]
[1739391783076,0.79019624,97641.0,97640.0,0.00022365]
[1739391783523,0.80119624,97641.0,97640.0,0.00122365]
[1739391783819,0.80119624,97641.0,97640.0,0.00222365]
[1739391784024,0.80119624,97641.0,97640.0,0.00122365]
[1739391784285,0.90369989,97641.0,97640.0,0.00122365]
[1739391784759,0.89269989,97641.0,97640.0,0.00022365]
[1739391785144,0.90169989,97641.0,97640.0,0.00122365]
[1739391785542,0.89269989,97641.0,97640.0,0.00022365]
[1739391785813,0.89569989,97641.0,97640.0,0.00022365]